bitfinex-derivatives/quotes_BTCF0:USTF0_20250315
["timestamp","ask_amount","ask_price","bid_price","bid_amount"]
[1741999725322,0.3314959,84304.0,84303.0,0.3254]
[1741999731724,0.5614959,84304.0,84303.0,0.3254]
[1741999731919,0.3314959,84304.0,84303.0,0.3254]
[1741999732430,0.6114959,84304.0,84303.0,0.3254]
[1741999732618,0.3314959,84304.0,84303.0,0.3254]
[1741999733215,0.5714959,84304.0,84303.0,0.3254]
[1741999733417,0.3314959,84304.0,84303.0,0.3254]
[1741999733629,0.3314959,84304.0,84303.0,0.4440173]
[1741999734016,0.3006959,84304.0,84303.0,0.4440173]
[1741999734731,0.2679959,84304.0,84303.0,0.4440173]
[1741999734935,0.2358959,84304.0,84303.0,0.4440173]
[1741999735431,0.2358959,84304.0,84303.0,0.7240173]
[1741999735625,0.2358959,84304.0,84303.0,0.4440173]
[1741999735930,0.2358959,84304.0,84303.0,0.6840173]
[1741999736123,0.2358959,84304.0,84303.0,0.4440173]
[1741999737129,0.1216159,84304.0,84303.0,0.4440173]
[1741999737329,0.2358959,84304.0,84303.0,0.4440173]
[1741999738325,0.2662959,84304.0,84303.0,0.4440173]
[1741999738826,0.2358959,84304.0,84303.0,0.4440173]
[1741999739435,0.1216159,84304.0,84303.0,0.4440173]
[1741999741142,0.1547159,84304.0,84303.0,0.4440173]
[1741999743040,0.1216159,84304.0,84303.0,0.4440173]
[1741999745140,0.003,84304.0,84303.0,0.6840173]
[1741999746029,0.003,84304.0,84303.0,0.9140173]
[1741999747231,0.11428,84323.0,84318.0,0.1185962]
[1741999747432,0.1185914,84322.0,84321.0,0.1185906]
[1741999747631,0.1185914,84322.0,84321.0,0.3485906]
[1741999747833,0.1185914,84322.0,84321.0,0.5885906]
[1741999748037,0.1185914,84322.0,84321.0,0.3485906]
[1741999748444,0.1185914,84322.0,84321.0,0.5785906]
[1741999748663,0.1185914,84322.0,84321.0,0.36068564]
[1741999748941,0.1235914,84322.0,84321.0,0.36068564]
[1741999749241,0.005,84322.0,84321.0,0.88068564]
[1741999750037,0.005,84322.0,84321.0,0.36068564]
[1741999750237,0.01,84322.0,84321.0,0.89068564]
[1741999750542,0.01,84322.0,84321.0,0.87068564]
[1741999750838,0.01,84322.0,84321.0,0.91068564]
[1741999751032,0.01,84322.0,84321.0,0.36068564]
[1741999751236,0.01,84322.0,84321.0,0.88068564]
[1741999751438,0.01,84322.0,84321.0,0.86068564]
[1741999751644,0.01,84322.0,84321.0,0.84068564]
[1741999751845,0.01,84322.0,84321.0,0.88068564]
[1741999752141,0.01,84322.0,84321.0,0.89068564]
[1741999752339,0.01,84322.0,84321.0,0.62068564]
[1741999752544,0.00017787,84330.0,84329.0,0.1185807]
[1741999752744,0.1492601,84344.0,84343.0,0.1185597]
[1741999753134,0.1185601,84344.0,84343.0,0.3885597]
[1741999753439,0.0592791,84346.0,84345.0,0.1185583]
[1741999753646,0.1185667,84339.0,84338.0,0.3608]
[1741999753841,0.1185667,84339.0,84338.0,0.6008]
[1741999754846,0.1509667,84339.0,84338.0,0.7193681]
[1741999755440,0.1519667,84339.0,84338.0,0.7193681]
[1741999756746,0.1195667,84339.0,84338.0,0.7193681]
[1741999757142,0.1205667,84339.0,84338.0,0.7193681]
[1741999758241,0.1205667,84339.0,84338.0,0.6008]
[1741999758443,0.1205667,84339.0,84338.0,0.6338]
[1741999758647,0.1518667,84339.0,84338.0,0.6338]
[1741999758941,0.1518667,84339.0,84338.0,0.7523681]
[1741999760243,0.1518667,84339.0,84338.0,0.7828681]
[1741999762549,0.1205667,84339.0,84338.0,0.7828681]
[1741999765339,0.1205667,84339.0,84338.0,0.6643]
[1741999765950,0.1205667,84339.0,84338.0,0.7828681]
[1741999766452,0.1205667,84339.0,84338.0,0.4243]
[1741999766845,0.1205667,84339.0,84338.0,0.3938]
[1741999768052,0.1205667,84339.0,84338.0,0.5425681]
[1741999768442,0.1534667,84339.0,84338.0,0.5425681]
[1741999769550,0.4434667,84339.0,84338.0,0.3608]
[1741999769751,0.1185681,84338.0,84337.0,0.00017787]
[1741999769946,0.4192681,84338.0,84337.0,0.00017787]
[1741999770143,0.4301681,84338.0,84337.0,0.00017787]
[1741999770550,0.4101681,84338.0,84337.0,0.00017787]
[1741999770745,0.1185948,84319.0,84309.0,0.3608]
[1741999771048,0.1185948,84319.0,84318.0,0.3808]
[1741999771442,0.1185948,84319.0,84318.0,0.4993962]
[1741999772045,0.1518948,84319.0,84318.0,0.5608962]
[1741999773648,0.1528948,84319.0,84318.0,0.5608962]
[1741999773854,0.1528948,84319.0,84318.0,0.57278523]
[1741999774157,0.00060001,84338.0,84326.0,0.118585]
[1741999774356,0.1144,84338.0,84326.0,1.0708]
[1741999774652,0.2329686,84338.0,84337.0,0.1185695]
[1741999774859,0.2329686,84338.0,84337.0,0.3485695]
[1741999775547,0.2329686,84338.0,84337.0,0.4095695]
[1741999776142,0.4931686,84338.0,84337.0,0.291]
[1741999776445,0.4931686,84338.0,84337.0,0.0308]
[1741999776446,0.2631686,84338.0,84337.0,0.0308]
[1741999777055,0.2631686,84338.0,84337.0,0.0609]
[1741999777442,0.2661686,84338.0,84337.0,0.0609]
[1741999777946,0.6931686,84338.0,84337.0,0.0609]
[1741999778141,0.4661686,84338.0,84337.0,0.0609]
[1741999778755,0.3517686,84338.0,84337.0,0.0609]
[1741999779148,0.4968686,84338.0,84337.0,0.0609]
[1741999779555,0.4938686,84338.0,84337.0,0.0609]
[1741999779858,0.4958286,84338.0,84337.0,0.0609]
[1741999780462,0.4928286,84338.0,84337.0,0.0609]
[1741999780755,0.4968286,84338.0,84337.0,0.0609]
[1741999781152,0.4978286,84338.0,84337.0,0.0609]
[1741999781460,0.6078286,84338.0,84337.0,0.0609]
[1741999781648,0.4978286,84338.0,84337.0,0.0609]
[1741999782044,0.7478286,84338.0,84337.0,0.0609]
[1741999782853,0.7278286,84338.0,84337.0,0.0609]
[1741999783757,0.7678286,84338.0,84337.0,0.0609]
[1741999783959,0.8010286,84338.0,84337.0,0.0609]
[1741999785064,0.7810286,84338.0,84337.0,0.0609]
[1741999785459,0.5310286,84338.0,84337.0,0.0609]
[1741999785665,0.7710286,84338.0,84337.0,0.0609]
[1741999785854,0.8110286,84338.0,84337.0,0.0609]
[1741999786055,0.5310286,84338.0,84337.0,0.0609]
[1741999787363,0.7610286,84338.0,84337.0,0.0609]
[1741999787963,0.4368086,84338.0,84337.0,0.1794695]
[1741999788756,0.3225686,84338.0,84337.0,0.1794695]
[1741999789468,0.3195686,84338.0,84337.0,0.1794695]
[1741999789861,0.3165686,84338.0,84337.0,0.1794695]
[1741999790755,0.3175686,84338.0,84337.0,0.1794695]
[1741999792067,0.3165686,84338.0,84337.0,0.1794695]
[1741999792568,0.3175686,84338.0,84337.0,0.1794695]
[1741999793757,0.3175686,84338.0,84337.0,0.4394695]
[1741999793958,0.3175686,84338.0,84337.0,0.1794695]
[1741999795058,0.3165686,84338.0,84337.0,0.1794695]
[1741999795259,0.3175686,84338.0,84337.0,0.1794695]
[1741999798468,0.3165686,84338.0,84337.0,0.1794695]
[1741999798668,0.3175686,84338.0,84337.0,0.1794695]
[1741999800572,0.3501686,84338.0,84337.0,0.1794695]
[1741999801271,0.3175686,84338.0,84337.0,0.1794695]
[1741999801767,0.002,84338.0,84337.0,0.1794695]
[1741999801971,0.2348081,84338.0,84337.0,0.6894695]
[1741999802272,0.002,84338.0,84337.0,0.6894695]
[1741999802469,0.1195681,84338.0,84337.0,0.6894695]
[1741999802671,0.1205681,84338.0,84337.0,0.6894695]
[1741999802873,0.1205681,84338.0,84337.0,0.6794695]
[1741999803074,0.1205681,84338.0,84337.0,0.4494695]
[1741999803263,0.1195681,84338.0,84337.0,0.4494695]
[1741999803471,0.1205681,84338.0,84337.0,0.4494695]
[1741999803671,0.1205681,84338.0,84337.0,0.3309]
[1741999803970,0.4665681,84338.0,84337.0,0.0609]
[1741999804170,0.2165681,84338.0,84337.0,0.0609]
[1741999804674,0.4465681,84338.0,84337.0,0.0609]
[1741999804871,0.2165681,84338.0,84337.0,0.0609]
[1741999805564,0.6435681,84338.0,84337.0,0.0609]
[1741999805765,0.6825681,84338.0,84337.0,0.0308]
[1741999806373,0.6845681,84338.0,84337.0,0.0308]
[1741999806574,0.4155681,84338.0,84337.0,0.0308]
[1741999807168,0.5298081,84338.0,84337.0,0.0308]
[1741999807475,0.4155681,84338.0,84337.0,0.0308]
[1741999808374,0.3851681,84338.0,84337.0,0.0308]
[1741999808577,0.4994081,84338.0,84337.0,0.1493695]
[1741999809165,0.1881681,84338.0,84337.0,0.3993695]
[1741999809371,0.1881681,84338.0,84337.0,0.1493695]
[1741999809566,0.3024081,84338.0,84337.0,0.1794695]
[1741999809767,0.2984081,84338.0,84337.0,0.4294695]
[1741999809973,0.3004081,84338.0,84337.0,0.4294695]
[1741999810180,0.1861681,84338.0,84337.0,0.4594695]
[1741999810378,0.1215681,84338.0,84337.0,0.4194695]
[1741999810573,0.1215681,84338.0,84337.0,0.4094695]
[1741999810776,0.003,84338.0,84337.0,0.6794695]
[1741999811076,0.1185597,84344.0,84343.0,0.1778381]
[1741999811280,0.1185597,84344.0,84343.0,0.4078381]
[1741999811470,0.1185597,84344.0,84343.0,0.1778381]
[1741999811671,0.11873617,84346.0,84345.0,0.1185583]
[1741999811871,0.11873617,84346.0,84345.0,0.3685583]
[1741999812572,0.11873617,84346.0,84345.0,0.4733583]
[1741999812876,0.11873617,84346.0,84345.0,0.19529363]
[1741999813183,0.12273617,84346.0,84345.0,0.45529363]
[1741999813369,0.12573617,84346.0,84345.0,0.19529363]
[1741999813682,0.12573617,84346.0,84345.0,0.45529363]
[1741999813984,0.12573617,84346.0,84345.0,0.43529363]
[1741999814281,0.12573617,84346.0,84345.0,0.19529363]
[1741999814578,0.12573617,84346.0,84345.0,0.42529363]
[1741999814777,0.12573617,84346.0,84345.0,0.45529363]
[1741999814978,0.12573617,84346.0,84345.0,0.19529363]
[1741999815280,0.12573617,84346.0,84345.0,0.42529363]
[1741999815483,0.15843617,84346.0,84345.0,0.07673533]
[1741999815679,0.19123617,84346.0,84345.0,0.33673533]
[1741999815981,0.1185639,84341.0,84340.0,0.3608]
[1741999816278,0.1185639,84341.0,84340.0,0.25]
[1741999816782,0.2328039,84341.0,84340.0,0.25]
[1741999816980,0.1185737,84334.0,84333.0,0.00128]
[1741999817183,0.1185793,84330.0,84329.0,0.00017787]
[1741999817380,0.3428193,84330.0,84329.0,0.00017787]
[1741999817579,0.2985193,84330.0,84329.0,0.00017787]
[1741999817977,0.5485193,84330.0,84329.0,0.00017787]
[1741999818278,0.2985193,84330.0,84329.0,0.00017787]
[1741999818678,0.7355193,84330.0,84329.0,0.00017787]
[1741999818874,0.1185962,84318.0,84317.0,0.031]
[1741999819182,0.117599,84316.0,84315.0,0.21340482]
[1741999819384,0.357599,84316.0,84315.0,0.21340482]
[1741999819579,0.397599,84316.0,84315.0,0.21340482]
[1741999819781,0.183299,84316.0,84315.0,0.21340482]
[1741999820287,0.281299,84316.0,84315.0,0.21340482]
[1741999820677,0.181299,84316.0,84315.0,0.21340482]
[1741999820878,0.177299,84316.0,84315.0,0.21340482]
[1741999821186,0.457299,84316.0,84315.0,0.21340482]
[1741999821572,0.177299,84316.0,84315.0,0.21340482]
[1741999821877,0.177299,84316.0,84307.0,0.06277787]
[1741999821878,0.1186103,84308.0,84307.0,0.06277787]
[1741999822072,0.2328503,84308.0,84307.0,0.06277787]
[1741999822773,0.5553503,84308.0,84307.0,0.06277787]
[1741999823283,0.2953503,84308.0,84307.0,0.06277787]
[1741999823584,0.2973503,84308.0,84307.0,0.06277787]
[1741999823983,0.2993503,84308.0,84307.0,0.06277787]
[1741999825385,0.5693503,84308.0,84307.0,0.06277787]
[1741999825570,0.2993503,84308.0,84307.0,0.06277787]
[1741999826282,0.5893503,84308.0,84307.0,0.06277787]
[1741999826482,0.2993503,84308.0,84307.0,0.06277787]
[1741999828582,0.1226103,84308.0,84307.0,0.06277787]
[1741999828893,0.2368903,84308.0,84307.0,0.06277787]
[1741999829479,0.2368903,84308.0,84307.0,0.29277787]
[1741999829683,0.2368903,84308.0,84307.0,0.06277787]
[1741999829882,0.11428,84314.0,84311.0,0.0593026]
[1741999830089,0.1186018,84314.0,84313.0,0.4794032]
[1741999830291,0.1186018,84314.0,84313.0,0.6994032]
[1741999830594,0.1186018,84314.0,84313.0,0.7639032]
[1741999830987,0.2328747,84320.0,84319.0,0.1185948]
[1741999831200,0.3608,84350.0,84319.0,0.1185948]
[1741999831201,0.00017787,84324.0,84322.0,0.1185892]
[1741999831388,0.11876567,84324.0,84323.0,0.1805892]
[1741999831582,0.00017787,84324.0,84323.0,0.4234892]
[1741999832583,0.11876567,84324.0,84323.0,0.4234892]
[1741999833605,0.11976567,84324.0,84323.0,0.4375886]
[1741999834993,0.11876567,84324.0,84323.0,0.3079]
[1741999835301,0.11876567,84324.0,84323.0,0.0655]
[1741999835494,0.18286567,84324.0,84323.0,0.0655]
[1741999836596,0.18586567,84324.0,84323.0,0.0645]
[1741999837187,0.43586567,84324.0,84323.0,0.0645]
[1741999837398,0.18586567,84324.0,84323.0,0.0645]
[1741999838098,0.18786567,84324.0,84323.0,0.0645]
[1741999839193,0.18786567,84324.0,84323.0,0.0329]
[1741999839194,0.50066567,84324.0,84323.0,0.0329]
[1741999839498,0.31066567,84324.0,84323.0,0.0329]
[1741999839699,0.22066567,84324.0,84323.0,0.0329]
[1741999839899,0.49066567,84324.0,84323.0,0.0329]
[1741999840100,0.22066567,84324.0,84323.0,0.0329]
[1741999840494,0.33066567,84324.0,84323.0,0.0329]
[1741999840794,0.22066567,84324.0,84323.0,0.0329]
[1741999841000,0.46066567,84324.0,84323.0,0.0329]
[1741999841193,0.22066567,84324.0,84323.0,0.0329]
[1741999841389,0.48066567,84324.0,84323.0,0.0329]
[1741999841693,0.12376567,84324.0,84323.0,0.1514892]
[1741999842391,0.12376567,84324.0,84323.0,0.0329]
[1741999842602,0.32076567,84324.0,84323.0,0.0329]
[1741999842902,0.38656567,84324.0,84323.0,0.0329]
[1741999843098,0.35396567,84324.0,84323.0,0.0329]
[1741999843303,0.35396567,84324.0,84323.0,0.1514892]
[1741999843503,0.35396567,84324.0,84323.0,0.1815892]
[1741999844092,0.35396567,84324.0,84323.0,0.063]
[1741999844605,0.35396567,84324.0,84323.0,0.4238]
[1741999844794,0.35396567,84324.0,84323.0,0.063]
[1741999845696,0.32076567,84324.0,84323.0,0.1815892]
[1741999847404,0.38406567,84324.0,84323.0,0.1815892]
[1741999847599,0.35096567,84324.0,84323.0,0.1815892]
[1741999847801,0.32076567,84324.0,84323.0,0.063]
[1741999849902,0.35096567,84324.0,84323.0,0.063]
[1741999850110,0.38146567,84324.0,84323.0,0.063]
[1741999850606,0.32076567,84324.0,84323.0,0.063]
[1741999850798,0.005,84324.0,84323.0,0.7115892]
[1741999850997,0.1185836,84327.0,84326.0,0.0592923]
[1741999851309,0.1185836,84327.0,84326.0,0.1539923]
[1741999852412,0.1225836,84327.0,84326.0,0.1539923]
[1741999852907,0.1255836,84327.0,84326.0,0.5147923]
[1741999853499,0.1255836,84327.0,84326.0,0.52671351]
[1741999854604,0.1255836,84327.0,84326.0,0.75671351]
[1741999855615,0.1255836,84327.0,84326.0,0.79671351]
[1741999856007,0.007,84327.0,84326.0,0.52671351]
[1741999856213,0.007,84327.0,84326.0,0.80671351]
[1741999857312,0.1255836,84327.0,84326.0,0.80671351]
[1741999858610,0.007,84327.0,84326.0,0.80671351]
[1741999860413,0.11544,84336.0,84333.0,0.1185737]
[1741999860611,0.11875017,84335.0,84334.0,0.4241]
[1741999861016,0.18285017,84335.0,84334.0,0.4241]
[1741999861721,0.18585017,84335.0,84334.0,0.4241]
[1741999862114,0.45085017,84335.0,84334.0,0.4241]
[1741999862309,0.28785017,84335.0,84334.0,0.4241]
[1741999862625,0.19085017,84335.0,84334.0,0.4241]
[1741999863022,0.30085017,84335.0,84334.0,0.4241]
[1741999863219,0.19085017,84335.0,84334.0,0.4241]
[1741999864220,0.30085017,84335.0,84334.0,0.4241]
[1741999864415,0.19085017,84335.0,84334.0,0.4241]
[1741999866023,0.19085017,84335.0,84334.0,0.0633]
[1741999866329,0.29085017,84335.0,84334.0,0.0633]
[1741999866726,0.1185836,84327.0,84326.0,0.37272121]
[1741999867329,0.1185906,84322.0,84316.0,0.1185984]
[1741999867526,0.1185948,84319.0,84318.0,0.18877407]
[1741999868420,0.1798948,84319.0,84318.0,0.26270081]
[1741999869126,0.1808948,84319.0,84318.0,0.26270081]
[1741999870626,0.1195948,84319.0,84318.0,0.26270081]
[1741999871019,0.001,84319.0,84318.0,0.26270081]
[1741999871229,0.1195948,84319.0,84318.0,0.26270081]
[1741999877425,0.3165948,84319.0,84318.0,0.14410461]
[1741999877634,0.1843948,84319.0,84318.0,0.14410461]
[1741999879328,0.11508,84325.0,84324.0,0.1185878]
[1741999879533,0.11508,84325.0,84324.0,0.9793878]
[1741999879735,0.11508,84325.0,84324.0,1.0739878]
[1741999880239,0.2336664,84325.0,84324.0,1.0739878]
[1741999880437,0.00017787,84335.0,84331.0,0.0592886]
[1741999880743,0.11875017,84335.0,84334.0,0.1185737]
[1741999880943,0.11875017,84335.0,84334.0,0.4234737]
[1741999881142,0.11875017,84335.0,84334.0,0.4550737]
[1741999881638,0.11875017,84335.0,84334.0,0.46705666]
[1741999882144,0.00017787,84335.0,84334.0,0.46705666]
[1741999882631,0.00317787,84335.0,84334.0,0.46705666]
[1741999884442,0.00317787,84335.0,84334.0,0.70705666]
[1741999884744,0.00317787,84335.0,84334.0,0.46705666]
[1741999887345,0.00317787,84335.0,84334.0,0.74705666]
[1741999888448,0.1152,84345.0,84344.0,0.1185597]
[1741999888748,0.2337583,84345.0,84344.0,0.4793597]
[1741999889340,0.2337583,84345.0,84344.0,0.5750597]
[1741999889637,0.2377583,84345.0,84344.0,0.5750597]
[1741999890943,0.2694583,84345.0,84344.0,0.5750597]
[1741999893150,0.2694583,84345.0,84344.0,0.8450597]
[1741999893344,0.2694583,84345.0,84344.0,0.5750597]
[1741999893644,0.2694583,84345.0,84344.0,0.8050597]
[1741999893852,0.004,84345.0,84344.0,1.2450597]
[1741999894041,0.1185417,84357.0,84356.0,0.1185414]
[1741999894239,0.17427,84358.0,84356.0,0.1185414]
[1741999894240,0.1830382,84361.0,84360.0,0.1185372]
[1741999894743,0.2423061,84361.0,84360.0,0.1185372]
[1741999895144,0.2423061,84361.0,84360.0,0.1817372]
[1741999895847,0.0592679,84361.0,84360.0,0.3917372]
[1741999896051,0.0602679,84361.0,84360.0,0.3917372]
[1741999896251,0.0602679,84361.0,84360.0,0.4034346]
[1741999896451,0.0602679,84361.0,84360.0,0.1934346]
[1741999896452,0.0922679,84361.0,84360.0,0.1934346]
[1741999896839,0.0922679,84361.0,84360.0,0.4734346]
[1741999897052,0.0922679,84361.0,84360.0,0.1934346]
[1741999897751,0.0922679,84361.0,84360.0,0.4234346]
[1741999898537,0.0922679,84361.0,84360.0,0.4734346]
[1741999899045,0.0922679,84361.0,84360.0,0.1934346]
[1741999899245,0.0922679,84361.0,84360.0,0.4534346]
[1741999899948,0.0912679,84361.0,84360.0,0.1934346]
[1741999900356,0.0912679,84361.0,84360.0,0.4734346]
[1741999900945,0.0912679,84361.0,84360.0,0.1934346]
[1741999901252,0.2562671,84363.0,84362.0,0.1185344]
[1741999901456,0.2562671,84363.0,84362.0,0.3885344]
[1741999901661,0.1500312,84365.0,84364.0,0.1185316]
[1741999901856,0.1830312,84365.0,84364.0,0.4793316]
[1741999902155,0.0315,84365.0,84364.0,0.9893316]
[1741999902351,0.033,84368.0,84367.0,0.1185273]
[1741999902552,0.1839259,84368.0,84367.0,0.3785273]
[1741999902949,0.0654,84368.0,84367.0,0.3585273]
[1741999903146,0.0654,84368.0,84367.0,0.3785273]
[1741999903353,0.1839259,84368.0,84367.0,0.3685273]
[1741999903555,0.1839259,84368.0,84367.0,0.3985273]
[1741999903858,0.1839259,84368.0,84367.0,0.1185273]
[1741999904256,0.1839259,84368.0,84367.0,0.3685273]
[1741999904449,0.1839259,84368.0,84367.0,0.1185273]
[1741999904849,0.1185301,84365.0,84364.0,0.3608]
[1741999905853,0.2335701,84365.0,84364.0,0.3608]
[1741999906551,0.2979701,84365.0,84364.0,0.3608]
[1741999908658,0.2979701,84365.0,84364.0,0.4793316]
[1741999910156,0.3291701,84365.0,84364.0,0.3608]
[1741999911254,0.3291701,84365.0,84364.0,0.4793316]
[1741999912652,0.5261701,84365.0,84364.0,0.3608]
[1741999913255,0.2979701,84365.0,84364.0,0.4793316]
[1741999913961,0.2979701,84365.0,84364.0,0.3608]
[1741999914659,0.5949701,84365.0,84364.0,0.3608]
[1741999914855,0.4949701,84365.0,84364.0,0.3608]
[1741999915050,0.7749701,84365.0,84364.0,0.3608]
[1741999915249,0.7549701,84365.0,84364.0,0.3608]
[1741999915450,0.7349701,84365.0,84364.0,0.3608]
[1741999916465,0.7449701,84365.0,84364.0,0.3608]
[1741999918058,0.7649701,84365.0,84364.0,0.3608]
[1741999918862,0.4949701,84365.0,84364.0,0.3608]
[1741999919067,0.7349701,84365.0,84364.0,0.3608]
[1741999920261,0.7549701,84365.0,84364.0,0.3608]
[1741999921361,0.5849701,84365.0,84364.0,0.3608]
[1741999921563,0.4949701,84365.0,84364.0,0.3608]
[1741999921759,0.7249701,84365.0,84364.0,0.3608]
[1741999922160,0.7749701,84365.0,84364.0,0.3608]
[1741999922569,0.7649701,84365.0,84364.0,0.3608]
[1741999922772,0.6049701,84365.0,84364.0,0.3608]
[1741999922974,0.7649701,84365.0,84364.0,0.3608]
[1741999923271,0.7449701,84365.0,84364.0,0.3608]
[1741999924171,0.4949701,84365.0,84364.0,0.3608]
[1741999924966,0.7549701,84365.0,84364.0,0.3608]
[1741999925163,0.4949701,84365.0,84364.0,0.3608]
[1741999926060,0.7249701,84365.0,84364.0,0.3608]
[1741999926376,0.3155344,84362.0,84361.0,0.0331]
[1741999926668,0.4055344,84362.0,84361.0,0.0331]
[1741999926877,0.6110344,84362.0,84361.0,0.0331]
[1741999928274,0.3810344,84362.0,84361.0,0.0331]
[1741999928471,0.6310344,84362.0,84361.0,0.0331]
[1741999928663,0.68286395,84362.0,84361.0,0.0331]
[1741999929570,0.62286395,84362.0,84361.0,0.0331]
[1741999929778,0.39286395,84362.0,84361.0,0.0331]
[1741999929962,0.62286395,84362.0,84361.0,0.0331]
[1741999930372,0.67286395,84362.0,84361.0,0.0331]
[1741999930566,0.65286395,84362.0,84361.0,0.0331]
[1741999930763,0.1185358,84361.0,84360.0,0.0311]
[1741999930965,0.3748142,84356.0,84355.0,0.0309]
[1741999931164,0.7697742,84356.0,84355.0,0.0309]
[1741999931370,0.4897742,84356.0,84355.0,0.0309]
[1741999931874,0.7698742,84356.0,84355.0,0.0309]
[1741999932063,0.5524742,84356.0,84355.0,0.0638]
[1741999932261,0.4897742,84356.0,84355.0,0.0638]
[1741999932560,0.177813,84358.0,84355.0,0.3338]
[1741999932766,0.2335392,84360.0,84357.0,0.1185358]
[1741999932965,0.2335392,84360.0,84359.0,0.4793386]
[1741999933165,0.197,84363.0,84362.0,0.1185344]
[1741999933467,0.197,84363.0,84362.0,0.3785344]
[1741999933663,0.197,84363.0,84362.0,0.1185344]
[1741999933869,0.256265,84365.0,84364.0,0.1185316]
[1741999934172,0.256265,84365.0,84364.0,0.130208]
[1741999934477,0.256265,84365.0,84364.0,0.0116764]
[1741999934673,0.256265,84365.0,84364.0,0.1185316]
[1741999935165,0.256265,84365.0,84364.0,0.3985316]
[1741999935365,0.059265,84365.0,84364.0,0.3985316]
[1741999935565,0.059265,84365.0,84364.0,0.13044447]
[1741999935966,0.059265,84365.0,84364.0,0.42044447]
[1741999936166,0.059265,84365.0,84364.0,0.13044447]
[1741999937181,0.059265,84365.0,84364.0,0.38044447]
[1741999937374,0.059265,84365.0,84364.0,0.01191287]
[1741999937673,0.118533,84363.0,84362.0,0.0314]
[1741999938278,0.118533,84363.0,84362.0,0.0432285]
[1741999938462,0.118533,84363.0,84362.0,0.0314]
[1741999938669,0.149033,84363.0,84362.0,0.0314]
[1741999939577,0.346033,84363.0,84362.0,0.0314]
[1741999939770,0.38960473,84363.0,84362.0,0.0314]
[1741999940184,0.377733,84363.0,84362.0,0.0314]
[1741999940370,0.197,84371.0,84368.0,0.0592626]
[1741999940565,0.1185245,84370.0,84369.0,0.0628]
[1741999942675,0.3155245,84370.0,84369.0,0.0628]
[1741999943073,0.3485245,84370.0,84369.0,0.0628]
[1741999943273,0.3155245,84370.0,84369.0,0.0628]
[1741999943874,0.3155245,84370.0,84369.0,0.1813245]
[1741999944882,0.3155245,84370.0,84369.0,0.0628]
[1741999945386,0.3155245,84370.0,84369.0,0.1813245]
[1741999945682,0.3155245,84370.0,84369.0,0.0628]
[1741999946469,0.3155245,84370.0,84369.0,0.4236]
[1741999947474,0.3470245,84370.0,84369.0,0.4236]
[1741999949881,0.3470245,84370.0,84369.0,0.7036]
[1741999950083,0.3470245,84370.0,84369.0,0.4236]
[1741999950281,0.3470245,84370.0,84369.0,0.6636]
[1741999950481,0.3470245,84370.0,84369.0,0.4236]
[1741999950681,0.3470245,84370.0,84369.0,0.4562]
[1741999951788,0.3470245,84370.0,84369.0,0.8547245]
[1741999951979,0.3155245,84370.0,84369.0,0.8047245]
[1741999952180,0.3155245,84370.0,84369.0,0.5747245]
[1741999952586,0.3155245,84370.0,84369.0,0.8547245]
[1741999952775,0.3155245,84370.0,84369.0,0.8047245]
[1741999953091,0.3155245,84370.0,84369.0,0.8547245]
[1741999953392,0.3155245,84370.0,84369.0,0.4562]
[1741999953588,0.3476245,84370.0,84369.0,0.4562]
[1741999954094,0.3789245,84370.0,84369.0,0.0626]
[1741999954482,0.6489245,84370.0,84369.0,0.0626]
[1741999954687,0.3789245,84370.0,84369.0,0.0626]
[1741999954888,0.6289245,84370.0,84369.0,0.0626]
[1741999955185,0.6589245,84370.0,84369.0,0.0626]
[1741999955488,0.3789245,84370.0,84369.0,0.4234]
[1741999955791,0.4889245,84370.0,84369.0,0.4234]
[1741999955976,0.3789245,84370.0,84369.0,0.4234]
[1741999959289,0.315533,84363.0,84362.0,0.36204]
[1741999959485,0.430253,84363.0,84362.0,0.3608]
[1741999959688,0.1185428,84356.0,84355.0,0.0639]
[1741999959986,0.1185428,84356.0,84355.0,0.4247]
[1741999960190,0.4893428,84356.0,84355.0,0.0639]
[1741999960388,0.3793428,84356.0,84355.0,0.4247]
[1741999960692,0.6293428,84356.0,84355.0,0.0639]
[1741999960893,0.3793428,84356.0,84355.0,0.4247]
[1741999973298,0.3155428,84356.0,84355.0,0.4247]
[1741999973492,0.3777428,84356.0,84355.0,0.4247]
[1741999979097,0.4677428,84356.0,84355.0,0.4247]
[1741999979295,0.3777428,84356.0,84355.0,0.4247]
[1741999979500,0.6077428,84356.0,84355.0,0.4247]
[1741999979802,0.3777428,84356.0,84355.0,0.4247]
[1741999980903,0.6177428,84356.0,84355.0,0.4247]
[1741999981104,0.4877428,84356.0,84355.0,0.4247]
[1741999981405,0.3777428,84356.0,84355.0,0.4247]
[1741999981711,0.3777428,84356.0,84355.0,0.0639]
[1741999982009,0.6377428,84356.0,84355.0,0.0639]
[1741999982209,0.4677428,84356.0,84355.0,0.0639]
[1741999982502,0.6577428,84356.0,84355.0,0.0639]
[1741999982695,0.6077428,84356.0,84355.0,0.0639]
[1741999982892,0.3155428,84356.0,84355.0,0.0639]
[1741999983191,0.3155428,84356.0,84355.0,0.2739]
[1741999985101,0.0319,84362.0,84355.0,0.2739]
[1741999985102,0.0592681,84361.0,84355.0,0.8647]
[1741999985306,0.1185407,84361.0,84360.0,0.1778023]
[1741999985498,0.1185407,84361.0,84360.0,0.4178023]
[1741999987501,0.1146,84363.0,84362.0,0.1185344]
[1741999987699,0.1146,84363.0,84362.0,0.9493344]
[1741999987700,0.233133,84363.0,84362.0,0.9493344]
[1741999987902,0.233133,84363.0,84362.0,0.73103751]
[1741999989814,0.233133,84363.0,84362.0,0.79243751]
[1741999993017,0.430133,84363.0,84362.0,0.79243751]
[1741999993815,0.430133,84363.0,84362.0,0.43390311]
[1741999994021,0.462033,84363.0,84362.0,0.43390311]
[1741999994210,0.722033,84363.0,84362.0,0.43390311]
[1741999994414,0.462033,84363.0,84362.0,0.43390311]
[1741999996720,0.462033,84363.0,84362.0,0.68390311]
[1741999996921,0.462033,84363.0,84362.0,0.43390311]
[1741999997616,0.462033,84363.0,84362.0,0.67390311]
[1741999997817,0.462033,84363.0,84362.0,0.43390311]
[1741999998724,0.462033,84363.0,84362.0,0.68390311]
[1741999999230,0.462033,84363.0,84362.0,0.43390311]
[1741999999417,0.197,84364.0,84362.0,0.70390311]
[1741999999614,0.3155328,84364.0,84363.0,0.118533]
[1741999999815,0.197,84364.0,84363.0,0.618533]
[1742000000010,0.3155316,84364.0,84363.0,0.422133]
[1742000001728,0.3455316,84364.0,84363.0,0.422133]
[1742000002727,0.3455316,84364.0,84363.0,0.3036]
[1742000002922,0.3774316,84364.0,84363.0,0.3036]